{"text_format":"3","workbook":"xlsx","n_sheets":4,"sheets":["III ступень","IV-V ступень","Отец ","Мать"],"read":"whole","date_system":"1900"}

{"sheet":"III ступень","index":0,"n_rows":14,"n_cols":17,"rows_kept":14,"merged":[[9,4,9,16]]}
[]
[]
[]
[null,null,"Регион: "," Республика Татарстан"]
[null,null,"(id региона) ","0c089b04-099e-4e0e-955a-6bf1ce525f1a "]
["Сводный протокол выполнения государственных требований к физической подготовленности граждан Российской Федерации         "]
["                                                                                                                                                                                                     ",null,null,"III  (11-12 лет)   ступень",null,null,"(пол)",null,"дата выполнения: \"  \""]
["Наименование центра тестирования:  МАОУ  \"СОШ № 40  с углубленным изучением отдельных предметов\""]
["Адрес центра тестирования:"]
["№\n п/п","Ф.И.О.","спортивное звание или спортивный разряд (при наличии)","УИН участника","ВИДЫ      ИСПЫТАНИЙ  (ТЕСТОВ)"]
[{"$nulls":4},"Бег на 1500  м","очки","Подтягивание из виса на высокой перекладине (юноши)","очки","Сгибание и разгибание рук в поре лежа на полу (девушки)","очки","Плавание 50 м","очки","Прыжок в длину с места толчком двумя ногами","очки","Наклон вперед из положения стоя с прямыми ногами на скамье","очки","общая сумма очков"]
[1,"Власова  А. О.",null,"15-16-0351883","8.50",25,null,0,9,18,"1.34.0",23,142,24,"9",28,{"$f":"SUM(F12+H12+J12+L12+N12+P12)","v":118}]
[2,"Баталова П.  Д.",null,"15-16-0298937","8.44",27,null,0,9,18,"1.20.0",20,145,25,"11",32,{"$f":"SUM(F13+H13+J13+L13+N13+P13)","v":122}]
[3,"Малов В. В.",null,"15-16-0347130","8.05",27,4,10,null,0,"1.20.0",20,159,23,"5",30,{"$f":"SUM(F14+H14+J14+L14+N14+P14)","v":110}]

{"sheet":"IV-V ступень","index":1,"n_rows":14,"n_cols":19,"rows_kept":14,"merged":[[5,4,5,18]]}
[null,null,"(id региона) ","0c089b04-099e-4e0e-955a-6bf1ce525f1a "]
["Сводный протокол выполнения государственных требований к физической подготовленности граждан Российской Федерации         "]
["                                                                                                                                                                                                     ",null,null,"IV-V  (13-16 лет)   ступень",null,null,"(пол)",null,"дата выполнения: \"  \""]
["Наименование центра тестирования:  МАОУ  \"СОШ № 40  с углубленным изучением отдельных предметов\""]
["Адрес центра тестирования:"]
["№\n п/п","Ф.И.О.","спортивное звание или спортивный разряд (при наличии)","УИН участника","ВИДЫ      ИСПЫТАНИЙ  (ТЕСТОВ)"]
[{"$nulls":4},"Бег на 2000  м","очки","Подтягивание из виса на высокой перекладине (юноши)","очки","Сгибание и разгибание рук в поре лежа на полу (девушки)","очки","Плавание 50 м","очки","Прыжок в длину с места толчком двумя ногами","очки","Наклон вперед из положения стоя с прямыми ногами на скамье","очки","Поднимание туловища из положения лежа на спине","очки","Общая сумма очков"]
[1,"Власова  А. О.",null,"15-16-0335990","11.06",32,0,0,10,20,"1.20.0",30,160,30,8,26,34,19,{"$f":"SUM(F8+H8+J8+L8+N8+P8+R8)","v":157}]
[2,"Баталова С. .",null,"15-16-0338258","9.40",10,10,28,null,0,"1.14.0",23,210,40,4,28,49,29,158]
[3,"Малов С. В.",null,"15-16-0347660","9.54",25,10,27,null,0,"1.24.0",18,192,34,5,30,39,19,153]
[4,"Цветков С. Д.",null,"15-16-0347457","9.36",27,9,25,null,0,"1.24.0",18,207,39,4,28,40,20,157]
[5,"Цветков З. Д.",null,"15-16-0352154","9.32",28,10,27,null,0,"1.24.0",18,198,36,5,30,39,19,158]
[6,"Кирьянов В.  А.",null,"15-16-0337759","9.20",30,13,36,null,0,"1.14.0",23,220,45,4,28,49,29,191]
[7,"Кирьянов В. А.",null,"15-16-0348148","9.32",28,10,27,null,0,"1.20.0",20,180,30,4,28,35,15,148]

{"sheet":"Отец ","index":2,"n_rows":13,"n_cols":15,"rows_kept":13,"merged":[[6,4,6,9]]}
[null,null,"Регион: "," Республика Татарстан"]
[null,null,"(id региона) ","0c089b04-099e-4e0e-955a-6bf1ce525f1a "]
["Сводный протокол выполнения государственных требований к физической подготовленности граждан Российской Федерации         "]
["                                                                                                                                                                                                     ",null,null,"VIII (40-49 лет)","ступень",null,"(пол) мужской",null,"дата выполнения: \"  \""]
["Наименование центра тестирования:  МАОУ  \"СОШ № 40  с углубленным изучением отдельных предметов\""]
["Адрес центра тестирования:"]
["№\n п/п","Ф.И.О.","спортивное звание или спортивный разряд (при наличии)","УИН участника","ВИДЫ      ИСПЫТАНИЙ  (ТЕСТОВ)"]
[{"$nulls":4},"Плавание 50 м","очки","Подтягивание из виса на высокой перекладине (юноши)","очки","Поднимание туловища из положения лежа на спине","очки","Прыжок в длину с места толчком двумя ногами","очки","Наклон вперед из положения стоя с прямыми ногами на скамье","очки","общая сумма очков"]
[1,"Власов О. В.",null,"15-16-0351883","1.20.0",20,9,25,26,10,171,27,3,26,{"$f":"SUM(F9+H9+J9+L9+N9)","v":108}]
[2,"Баталова Д. Е.",null,"15-16-0298937","1.20.0",20,9,25,26,10,171,27,2,24,{"$f":"SUM(F10+H10+J10+L10+N10)","v":106}]
[3,"Малов В. В.",null,"15-16-0347130","1.20.0",20,9,25,24,9,174,28,3,26,{"$f":"SUM(F11+H11+J11+L11+N11)","v":108}]
[4,"Цветков Д. Н.",null,"15-16-0296411","1.14.0",23,12,34,28,11,180,30,2,24,{"$f":"SUM(F12+H12+J12+L12+N12)","v":122}]
[5,"Кирьянов А. А.",null,"15-16-0353421","1.14.0",23,10,28,30,12,174,28,3,26,{"$f":"SUM(F13+H13+J13+L13+N13)","v":117}]

{"sheet":"Мать","index":3,"n_rows":12,"n_cols":13,"rows_kept":12,"merged":[[5,4,5,13]]}
[null,null,"(id региона) ","0c089b04-099e-4e0e-955a-6bf1ce525f1a "]
["Сводный протокол выполнения государственных требований к физической подготовленности граждан Российской Федерации         "]
["                                                                                                                                                                                                     ","VIII  (40-49 лет)   ступень",null,"(пол) женский",null,null,"дата выполнения: \"  \""]
["Наименование центра тестирования:  МАОУ  \"СОШ № 40  с углубленным изучением отдельных предметов\""]
["Адрес центра тестирования:"]
["№\n п/п","Ф.И.О.","спортивное звание или спортивный разряд (при наличии)","УИН участника","ВИДЫ      ИСПЫТАНИЙ  (ТЕСТОВ)"]
[{"$nulls":4},"Наклон вперед из положения стоя с прямыми ногами на скамье","очки","Сгибание и разгибание рук в поре лежа на полу (девушки)","очки","Поднимание туловища из положения лежа на спине","очки","Прыжок в длину с места толчком двумя ногами","очки","общая сумма очков"]
[1,"Власова  О. С.",null,"15-16-0340097",5,20,6,12,20,10,151,27,{"$f":"SUM(F8+H8+J8+L8)","v":69}]
[2,"Баталова О. С.",null,"15-16-0336026",2,14,6,12,20,10,145,25,{"$f":"SUM(F9+H9+J9+L9)","v":61}]
[3,"Малова  Е.С.",null,"15-16-0340133",3,16,9,18,18,9,151,27,{"$f":"SUM(F10+H10+J10+L10)","v":70}]
[4,"Цветкова  Л. В.",null,"15-16-0338424",3,16,9,18,18,9,154,28,{"$f":"SUM(F11+H11+J11+L11)","v":71}]
[5,"Кирьянова  Е. В.",null,"15-16-0340747",5,20,13,20,26,13,160,30,{"$f":"SUM(F12+H12+J12+L12)","v":83}]